bitfinex-derivatives/quotes_BTCF0:USTF0_20251217
["timestamp","ask_amount","ask_price","bid_price","bid_amount"]
[1765934975624,0.0519129,87793.0,87792.0,0.07946]
[1765934977817,0.04052,87793.0,87792.0,0.07946]
[1765934981921,0.001,87793.0,87792.0,0.07946]
[1765934982123,0.001,87793.0,87792.0,0.44026]
[1765934983717,0.0113919,87801.0,87800.0,0.07258]
[1765934983912,0.0321519,87801.0,87800.0,0.07258]
[1765934984118,0.0529119,87801.0,87800.0,0.07258]
[1765934985526,0.0529119,87801.0,87800.0,0.07358]
[1765934985727,0.0529119,87801.0,87800.0,0.07458]
[1765934986425,0.04152,87801.0,87800.0,0.07358]
[1765934986627,0.04152,87801.0,87800.0,0.07458]
[1765934988928,0.04152,87801.0,87800.0,0.07358]
[1765934989128,0.04152,87801.0,87800.0,0.07458]
[1765934989714,0.04152,87801.0,87800.0,0.07358]
[1765934989918,0.04152,87801.0,87800.0,0.07458]
[1765934993930,0.3721914,87805.0,87804.0,0.07258]
[1765934994118,0.4137114,87805.0,87804.0,0.07258]
[1765934995131,0.4137114,87805.0,87804.0,0.01753]
[1765934995431,0.4137114,87805.0,87804.0,0.04532]
[1765934995729,0.4137114,87805.0,87804.0,0.07258]
[1765934996126,0.4137114,87805.0,87804.0,0.07358]
[1765934996827,0.4137114,87805.0,87804.0,0.07258]
[1765934996828,0.4147114,87805.0,87804.0,0.07258]
[1765934998633,0.43967051,87805.0,87804.0,0.07258]
[1765934998834,0.43867051,87805.0,87804.0,0.07258]
[1765934999029,0.43967051,87805.0,87804.0,0.07258]
[1765934999540,0.43967051,87805.0,87804.0,0.01753]
[1765934999833,0.43867051,87805.0,87804.0,0.01753]
[1765935000033,0.43967051,87805.0,87804.0,0.01753]
[1765935000232,0.04152,87798.0,87797.0,0.06099969]
[1765935000434,0.0529122,87798.0,87797.0,0.05505]
[1765935001735,0.02076,87798.0,87797.0,0.05605]
[1765935002132,0.0529115,87804.0,87803.0,0.05505]
[1765935002321,0.0529115,87804.0,87800.0,0.01753]
[1765935002322,0.7216,87805.0,87804.0,0.02779]
[1765935002527,0.0529106,87811.0,87810.0,0.05505]
[1765935002727,0.42728093,87811.0,87810.0,0.05505]
[1765935004139,0.42928093,87811.0,87810.0,0.05505]
[1765935005023,0.43028093,87811.0,87810.0,0.05505]
[1765935005429,0.42928093,87811.0,87810.0,0.05505]
[1765935005629,0.42828093,87811.0,87810.0,0.05505]
[1765935008834,0.04152,87809.0,87808.0,0.01753]
[1765935009144,0.06648093,87809.0,87808.0,0.07633]
[1765935010140,0.06748093,87809.0,87808.0,0.07633]
[1765935011841,0.06748503,87809.0,87808.0,0.07633]
[1765935013047,0.02596503,87809.0,87808.0,0.07633]
[1765935013228,0.001,87809.0,87808.0,0.07633]
[1765935013644,0.001,87809.0,87808.0,0.12168789]
[1765935013829,0.00227745,87818.0,87812.0,0.0588]
[1765935014027,0.00227745,87818.0,87817.0,0.0701898]
[1765935014243,0.3608,87831.0,87815.0,0.01647]
[1765935014244,0.0321484,87828.0,87827.0,0.0701885]
[1765935014737,0.0529084,87828.0,87827.0,0.0701885]
[1765935015140,0.38156,87831.0,87830.0,0.0866581]
[1765935015340,0.3608,87831.0,87830.0,0.0866581]
[1765935015543,0.40232,87831.0,87830.0,0.0866581]
[1765935016641,0.40232,87831.0,87830.0,0.0876581]
[1765935017348,0.40232,87831.0,87830.0,0.0886581]
[1765935017543,0.38156,87831.0,87830.0,0.0886581]
[1765935017855,0.3608,87831.0,87830.0,0.0886581]
[1765935018040,0.38156,87831.0,87830.0,0.0886581]
[1765935018342,0.40232,87831.0,87830.0,0.0886581]
[1765935019745,0.04152,87831.0,87830.0,0.0886581]
[1765935024749,0.04152,87831.0,87830.0,0.07727]
[1765935025248,0.0416908,87836.0,87835.0,0.0866574]
[1765935025443,0.0416908,87836.0,87835.0,0.07527]
[1765935027253,0.0416908,87836.0,87835.0,0.07627]
[1765935027656,0.0416908,87836.0,87835.0,0.07727]
[1765935030858,0.0001708,87836.0,87835.0,0.07727]
[1765935031261,0.0113854,87851.0,87835.0,0.07727]
[1765935031262,0.0529054,87851.0,87850.0,0.0588]
[1765935031953,0.04152,87851.0,87850.0,0.0701855]
[1765935032148,0.02076,87851.0,87850.0,0.0701855]
[1765935032651,0.04352,87851.0,87850.0,0.0701855]
[1765935033052,0.0549054,87851.0,87850.0,0.0701855]
[1765935033250,0.0549054,87851.0,87850.0,0.0588]
[1765935033251,0.0559054,87851.0,87850.0,0.0588]
[1765935033447,0.4167054,87851.0,87850.0,0.0588]
[1765935034157,0.0559054,87851.0,87850.0,0.0588]
[1765935034349,0.0549054,87851.0,87850.0,0.0588]
[1765935034550,0.0539054,87851.0,87850.0,0.0588]
[1765935034751,0.0549054,87851.0,87850.0,0.0588]
[1765935040354,0.04352,87851.0,87850.0,0.0588]
[1765935047466,0.02276,87851.0,87850.0,0.0588]
[1765935047669,0.002,87851.0,87850.0,0.0588]
[1765935047873,0.00227641,87858.0,87857.0,0.05763]
[1765935048174,0.0113826,87873.0,87867.0,0.0690133]
[1765935048372,0.33304435,87868.0,87867.0,0.7812533]
[1765935049483,0.05042,87871.0,87870.0,0.07441]
[1765935051081,0.41122,87879.0,87878.0,0.05763]
[1765935051275,0.0618017,87879.0,87878.0,0.05763]
[1765935051589,0.05042,87876.0,87875.0,0.07441]
[1765935052190,0.0618028,87871.0,87870.0,0.07441]
[1765935052380,0.0618028,87871.0,87870.0,0.78661]
[1765935052782,0.0618028,87871.0,87870.0,0.07441]
[1765935054994,0.05042,87871.0,87870.0,0.07441]
[1765935060196,0.05042,87871.0,87870.0,0.0857929]
[1765935060384,0.0618022,87876.0,87875.0,0.07441]
[1765935061581,0.0628022,87876.0,87875.0,0.07441]
[1765935061785,0.0628022,87876.0,87875.0,0.43521]
[1765935062185,0.0628022,87876.0,87875.0,0.07441]
[1765935062186,0.0638022,87876.0,87875.0,0.07441]
[1765935063099,0.0638022,87876.0,87875.0,0.0857923]
[1765935064304,0.02721,87876.0,87875.0,0.0857923]
[1765935064600,0.0638021,87876.0,87875.0,0.01678]
[1765935064793,0.0638021,87876.0,87875.0,0.04389]
[1765935065591,0.0618028,87871.0,87870.0,0.07374]
[1765935071102,0.02748538,87898.0,87897.0,0.05755]
[1765935071297,0.06407468,87898.0,87897.0,0.05755]
[1765935072200,0.05042,87891.0,87890.0,0.04628]
[1765935072391,0.05042,87891.0,87890.0,0.07437]
[1765935072592,0.05042,87891.0,87890.0,0.01682]
[1765935073594,0.05042,87891.0,87890.0,0.07437]
[1765935075097,0.05042,87891.0,87890.0,0.07537]
[1765935075290,0.05042,87891.0,87890.0,0.07637]
[1765935075693,0.05042,87891.0,87890.0,0.07537]
[1765935076106,0.05042,87891.0,87890.0,0.07637]
[1765935077105,0.05042,87897.0,87896.0,0.05755]
[1765935079304,0.05142,87897.0,87896.0,0.05755]
[1765935079503,0.05042,87891.0,87890.0,0.07437]
[1765935079711,0.0618002,87891.0,87890.0,0.01682]
[1765935080608,0.0618002,87891.0,87890.0,0.04628]
[1765935081006,0.0618002,87891.0,87890.0,0.04728]
[1765935081306,0.0618002,87891.0,87890.0,0.07637]
[1765935081897,0.0618002,87891.0,87890.0,0.07537]
[1765935082202,0.0618002,87891.0,87890.0,0.07637]
[1765935084210,0.0618002,87891.0,87890.0,0.07537]
[1765935084907,0.0618002,87891.0,87890.0,0.01782]
[1765935085107,0.0618002,87891.0,87890.0,0.04828]
[1765935085306,0.0618002,87891.0,87890.0,0.001]
[1765935085901,0.0629,87890.0,87889.0,0.0001707]
[1765935086302,0.05042,87890.0,87889.0,0.0001707]
[1765935088014,0.05042,87890.0,87889.0,0.0011707]
[1765935088405,0.05042,87876.0,87875.0,0.04628]
[1765935088605,0.0618021,87876.0,87875.0,0.01682]
[1765935088806,0.0618021,87876.0,87875.0,0.04628]
[1765935089021,0.0618021,87876.0,87875.0,0.07437]
[1765935090006,0.05042,87876.0,87875.0,0.07437]
[1765935090207,0.02521,87876.0,87875.0,0.07437]
[1765935090407,0.05042,87881.0,87880.0,0.07437]
[1765935091212,0.05042,87881.0,87880.0,0.0857516]
[1765935091805,0.00017036,87884.0,87883.0,0.0689312]
[1765935092004,0.02538036,87884.0,87883.0,0.0689312]
[1765935092413,0.05059036,87884.0,87883.0,0.0689312]
[1765935093514,0.05059036,87884.0,87883.0,0.0699312]
[1765935094106,0.05059036,87884.0,87883.0,0.05755]
[1765935094306,0.05059036,87884.0,87883.0,0.05955]
[1765935095015,0.05059036,87884.0,87883.0,0.05855]
[1765935095215,0.05059036,87884.0,87883.0,0.05955]
[1765935095918,0.05059036,87884.0,87883.0,0.05855]
[1765935097616,0.05059036,87884.0,87883.0,0.05955]
[1765935098122,0.05059036,87884.0,87883.0,0.05855]
[1765935098420,0.05059036,87884.0,87883.0,0.05955]
[1765935103021,0.3608,87905.0,87897.0,0.05878]
[1765935103216,0.0113785,87904.0,87897.0,0.4309594]
[1765935103917,0.02765538,87898.0,87897.0,0.4309594]
[1765935104813,0.02765538,87898.0,87897.0,0.4329594]
[1765935105013,0.00227538,87898.0,87897.0,0.4329594]
[1765935105220,0.00227538,87898.0,87897.0,0.4349594]
[1765935107520,0.0621382,87907.0,87906.0,0.07593]
[1765935108032,0.0616293,87927.0,87911.0,0.05878]
[1765935108216,0.0483366,87919.0,87918.0,0.01715]
[1765935108420,0.0483366,87919.0,87912.0,0.01715]
[1765935108421,0.0483373,87913.0,87912.0,0.07593]
[1765935110824,0.0483373,87913.0,87912.0,0.07693]
[1765935111326,0.03696,87913.0,87912.0,0.07693]
[1765935111629,0.0483373,87913.0,87912.0,0.07693]
[1765935111816,0.4091373,87913.0,87912.0,0.0471]
[1765935112021,0.4091373,87913.0,87912.0,0.001]
[1765935112927,0.4091373,87913.0,87912.0,0.01715]
[1765935113228,0.0483379,87909.0,87908.0,0.0001707]
[1765935113531,0.07298775,87909.0,87908.0,0.0001707]
[1765935113925,0.0483379,87909.0,87908.0,0.0001707]
[1765935114725,0.0493379,87909.0,87908.0,0.0001707]
[1765935116235,0.0483379,87909.0,87908.0,0.0001707]
[1765935116437,0.0493379,87909.0,87908.0,0.0001707]
[1765935116736,0.0503379,87909.0,87908.0,0.0001707]
[1765935117238,0.0493379,87909.0,87908.0,0.0001707]
[1765935117431,0.0503379,87909.0,87908.0,0.0001707]
[1765935118232,0.0483397,87895.0,87888.0,0.01715]
[1765935120130,0.0483397,87895.0,87894.0,0.01815]
[1765935120352,0.0483397,87895.0,87894.0,0.01915]
[1765935120633,0.0483397,87895.0,87894.0,0.0481]
[1765935121035,0.0483397,87895.0,87894.0,0.001]
[1765935121036,0.0493397,87895.0,87894.0,0.001]
[1765935121241,0.0483404,87889.0,87888.0,0.01715]
[1765935121435,0.4091404,87889.0,87888.0,0.07593]
[1765935122030,0.4091404,87889.0,87888.0,0.01715]
[1765935122430,0.4091404,87889.0,87888.0,0.0461]
[1765935122644,0.4091404,87889.0,87888.0,0.07593]
[1765935123539,0.4111404,87889.0,87888.0,0.07593]
[1765935124246,0.4091404,87889.0,87888.0,0.07593]
[1765935124453,0.4101404,87889.0,87888.0,0.07593]
[1765935126844,0.4091404,87889.0,87888.0,0.07593]
[1765935139944,0.4091404,87889.0,87886.0,0.0001707]
[1765935139945,0.03696,87887.0,87886.0,0.0001707]
[1765935140452,0.03696,87887.0,87886.0,0.0559107]
[1765935142553,0.03796,87887.0,87886.0,0.0559107]
[1765935143857,0.03796,87887.0,87886.0,0.0672915]
[1765935144055,0.03796,87887.0,87886.0,0.0559107]
[1765935144257,0.03796,87887.0,87886.0,0.0285007]
[1765935144454,0.03796,87887.0,87886.0,0.0559107]
[1765935145255,0.01948,87887.0,87886.0,0.0559107]
[1765935145454,0.03796,87887.0,87886.0,0.0559107]
[1765935146653,0.03796,87887.0,87886.0,0.0001707]
[1765935146654,0.06293471,87887.0,87886.0,0.0001707]
[1765935149352,0.03696,87877.0,87876.0,0.04548]
[1765935149553,0.0483425,87873.0,87872.0,0.04508]
[1765935149754,0.0483425,87873.0,87872.0,0.07249]
[1765935150956,0.0483425,87873.0,87872.0,0.07449]
[1765935151961,0.0483425,87873.0,87872.0,0.04708]
[1765935152147,0.0483425,87873.0,87872.0,0.002]
[1765935152849,0.048343,87869.0,87868.0,0.04508]
[1765935153063,0.048343,87869.0,87868.0,0.01675]
[1765935153660,0.0483436,87865.0,87864.0,0.01702451]
[1765935153863,0.0483436,87865.0,87864.0,0.04535451]
[1765935154359,0.4091436,87865.0,87864.0,0.07320451]
[1765935154660,0.4091436,87865.0,87864.0,0.00027451]
[1765935155258,0.43408882,87865.0,87864.0,0.00027451]
[1765935155653,0.43408882,87865.0,87843.0,0.06082545]
[1765935155654,0.03696,87844.0,87843.0,0.06082545]
[1765935155846,0.0364,87826.0,87825.0,0.01627]
[1765935156047,0.3972,87826.0,87825.0,0.01627]
[1765935156751,0.39730442,87826.0,87825.0,0.01627]
[1765935157655,0.39830442,87826.0,87825.0,0.01627]
[1765935157877,0.0364,87821.0,87820.0,0.07364]
[1765935158057,0.0477893,87821.0,87820.0,0.07364]
[1765935158255,0.0477893,87821.0,87817.0,0.0001707]
[1765935158256,0.0364,87819.0,87817.0,0.0001707]
[1765935158563,0.0364,87819.0,87818.0,0.05964745]
[1765935160865,0.0374,87819.0,87818.0,0.05964745]
[1765935163462,0.0364,87819.0,87818.0,0.05964745]
[1765935163668,0.0374,87819.0,87818.0,0.05964745]
[1765935164058,0.0374,87819.0,87818.0,0.00227745]
[1765935164670,0.0384,87819.0,87818.0,0.00227745]
[1765935165461,0.0384,87819.0,87818.0,0.05964745]
[1765935166766,0.0374,87819.0,87818.0,0.05964745]
[1765935166970,0.0384,87819.0,87818.0,0.05964745]
[1765935167369,0.0374,87819.0,87818.0,0.05964745]
[1765935174173,0.0374,87819.0,87818.0,0.00227745]
[1765935175876,0.0364,87819.0,87818.0,0.00227745]
[1765935176179,0.0477896,87818.0,87817.0,0.0001707]
[1765935176379,0.0477906,87811.0,87810.0,0.07514]
[1765935176671,0.4085906,87811.0,87810.0,0.07514]
[1765935177668,0.4085906,87811.0,87810.0,0.07614]
[1765935178072,0.4085906,87811.0,87810.0,0.07714]
[1765935179567,0.0477906,87811.0,87810.0,0.07714]
[1765935179772,0.4085906,87811.0,87810.0,0.07714]
[1765935180774,0.3972,87811.0,87810.0,0.0885307]
[1765935180971,0.3608,87811.0,87810.0,0.0885307]
[1765935181573,0.4085906,87811.0,87810.0,0.04778]
[1765935181780,0.4085906,87811.0,87810.0,0.07614]
[1765935182185,0.4085906,87811.0,87810.0,0.04778]
[1765935182482,0.4085906,87811.0,87770.0,0.01777]
[1765935182483,0.05955,87789.0,87770.0,0.01777]
[1765935182676,0.0709457,87771.0,87770.0,0.07514]
[1765935182874,0.4317457,87771.0,87770.0,0.02901]
[1765935183074,0.45749295,87771.0,87770.0,0.00800541]
[1765935183279,0.45751876,87771.0,87770.0,0.00800541]
[1765935183675,0.45764188,87771.0,87770.0,0.00800541]
[1765935183879,0.45764188,87771.0,87770.0,0.01100541]
[1765935184080,0.45764188,87771.0,87770.0,0.003]
[1765935184584,0.45864188,87771.0,87770.0,0.006]
[1765935185086,0.45864188,87771.0,87770.0,0.03594]
[1765935185275,0.45864188,87771.0,87770.0,0.006]
[1765935186377,0.45864188,87771.0,87770.0,0.003]
[1765935186378,0.45764188,87771.0,87770.0,0.003]
[1765935186677,0.45864188,87771.0,87770.0,0.005]
[1765935187183,0.0678068,87763.0,87762.0,0.0001709]
[1765935187479,0.4286068,87763.0,87762.0,0.0001709]
[1765935187683,0.45431459,87763.0,87762.0,0.0001709]
[1765935187978,0.45431459,87763.0,87733.0,0.01152674]
[1765935187979,0.0678091,87745.0,87744.0,0.07751]
[1765935188185,0.4286091,87745.0,87744.0,0.07751]
[1765935188576,0.05641,87739.0,87738.0,0.43705]
[1765935188978,0.38802259,87745.0,87744.0,0.05974]
[1765935189174,0.41729259,87745.0,87744.0,0.05974]
[1765935189379,0.41529259,87745.0,87744.0,0.05974]
[1765935189579,0.41229259,87745.0,87744.0,0.05974]
[1765935190287,0.41229259,87745.0,87744.0,0.06274]
[1765935190288,0.41329259,87745.0,87744.0,0.06274]
[1765935190484,0.41338555,87745.0,87744.0,0.06274]
[1765935191077,0.41338555,87745.0,87744.0,0.003]
[1765935192785,0.05641,87734.0,87733.0,0.05986614]
[1765935192984,0.0678105,87734.0,87733.0,0.05986614]
[1765935193181,0.0678105,87734.0,87733.0,0.00012614]
[1765935193581,0.0678105,87734.0,87730.0,0.00011416]
[1765935193582,0.05641,87731.0,87730.0,0.05985416]
[1765935194482,0.05441,87731.0,87730.0,0.05985416]
[1765935195988,0.05641,87731.0,87730.0,0.05985416]
[1765935196487,0.05641,87731.0,87730.0,0.03005416]
[1765935196684,0.05641,87731.0,87730.0,0.05985416]
[1765935198291,0.0678109,87731.0,87730.0,0.05985416]
[1765935201194,0.05641,87731.0,87730.0,0.05985416]
[1765935203090,0.002,87731.0,87730.0,0.07125526]
[1765935203299,0.002,87731.0,87730.0,0.05985416]
[1765935203792,0.05841,87731.0,87730.0,0.05985416]
[1765935205501,0.05841,87731.0,87730.0,0.03005416]
[1765935206100,0.05841,87731.0,87730.0,0.00011416]
[1765935207000,0.41921,87731.0,87730.0,0.00011416]
[1765935207307,0.05641,87715.0,87714.0,0.05974]
[1765935207602,0.41731595,87715.0,87714.0,0.05974]
[1765935208304,0.42871895,87715.0,87714.0,0.07625]
[1765935208507,0.42971895,87715.0,87714.0,0.07625]
[1765935209696,0.42971895,87715.0,87714.0,0.05974]
[1765935209899,0.42971895,87715.0,87714.0,0.06074]
[1765935210295,0.42971895,87715.0,87714.0,0.07725]
[1765935210907,0.41831595,87715.0,87714.0,0.07725]
[1765935211103,0.00110595,87715.0,87714.0,0.0886531]
[1765935211304,0.00017101,87723.0,87722.0,0.0711421]
[1765935212403,0.0566693,87723.0,87722.0,0.0711421]
[1765935212615,0.0566693,87723.0,87722.0,0.05974]
[1765935212616,0.0002593,87723.0,87722.0,0.05974]
[1765935212912,0.0273993,87723.0,87722.0,0.05974]
[1765935213409,0.0273993,87723.0,87722.0,0.06074]
[1765935213601,0.0283993,87723.0,87722.0,0.06074]
[1765935214810,0.0576693,87723.0,87722.0,0.06074]
[1765935215513,0.0576693,87723.0,87722.0,0.06274]
[1765935218712,0.08350486,87723.0,87722.0,0.06274]
[1765935219308,0.08350777,87723.0,87722.0,0.06274]
[1765935222211,0.08350777,87723.0,87722.0,0.03177]
[1765935222513,0.05423777,87723.0,87722.0,0.06169]
[1765935222718,0.02709777,87723.0,87722.0,0.42249]
[1765935222923,0.06123214,87743.0,87733.0,0.05869]
[1765935223117,0.4158,87750.0,87749.0,0.05869]
[1765935223412,0.38664852,87750.0,87749.0,0.0700886]
[1765935223614,0.02584852,87750.0,87749.0,0.0700886]
[1765935223811,0.3608,87761.0,87744.0,0.01668]
[1765935223812,0.3608,87761.0,87760.0,0.05869]
[1765935224011,0.38663978,87761.0,87760.0,0.05869]
[1765935224219,0.38669269,87761.0,87760.0,0.05869]
[1765935224608,0.36085291,87761.0,87760.0,0.05869]
[1765935225008,0.41585291,87761.0,87760.0,0.05869]
[1765935225609,0.05505291,87761.0,87760.0,0.05869]
[1765935225810,5.291e-05,87761.0,87760.0,0.05869]
[1765935226018,0.00105291,87761.0,87760.0,0.05969]
[1765935226610,0.00205291,87761.0,87760.0,0.05969]
[1765935227018,0.05705291,87761.0,87760.0,0.05969]
[1765935227515,0.05705291,87761.0,87760.0,0.05869]
[1765935227715,0.05605291,87761.0,87760.0,0.05969]
[1765935227913,0.05605291,87761.0,87760.0,0.001]
[1765935228214,0.41685291,87761.0,87760.0,0.02977]
[1765935229020,0.41685291,87761.0,87760.0,0.02877]
[1765935229212,0.41585291,87761.0,87760.0,0.02877]
[1765935229414,0.41785291,87761.0,87760.0,0.02877]
[1765935229822,0.41585291,87761.0,87760.0,0.02877]
[1765935230017,0.42085291,87761.0,87760.0,0.05869]
[1765935230322,0.055,87753.0,87752.0,0.07554101]
[1765935230525,0.055,87753.0,87752.0,0.05886101]
[1765935230913,0.055,87753.0,87752.0,0.07554101]
[1765935231818,0.055,87753.0,87752.0,0.05886101]
[1765935232524,0.4158,87753.0,87752.0,0.00017101]
[1765935232935,0.4178,87753.0,87752.0,0.00017101]
[1765935233122,0.4188,87753.0,87752.0,0.00017101]
[1765935234821,0.44455303,87753.0,87752.0,0.00017101]
[1765935235120,0.44555303,87753.0,87752.0,0.00117101]
[1765935235325,0.44455303,87753.0,87752.0,0.00117101]
[1765935235524,0.44655303,87753.0,87752.0,0.00217101]
[1765935236023,0.44755303,87753.0,87752.0,0.00217101]
[1765935236329,0.44755303,87753.0,87752.0,0.00117101]
[1765935236720,0.4218,87753.0,87752.0,0.05986101]
[1765935237129,0.4218,87753.0,87752.0,0.00117101]
[1765935237335,0.4218,87753.0,87752.0,0.05986101]
[1765935237622,0.4218,87753.0,87752.0,0.00117101]
[1765935237829,0.4228,87753.0,87752.0,0.00117101]
[1765935239320,0.4198,87753.0,87752.0,0.00117101]
[1765935239526,0.4208,87753.0,87752.0,0.00217101]
[1765935240128,0.4188,87753.0,87752.0,0.00117101]
[1765935240328,0.4208,87753.0,87752.0,0.00217101]
[1765935240525,0.4208,87753.0,87752.0,0.06086101]
[1765935240725,0.4178,87753.0,87752.0,0.00117101]
[1765935240928,0.4208,87753.0,87752.0,0.00217101]
[1765935242229,0.4178,87753.0,87752.0,0.00117101]
[1765935242430,0.4188,87753.0,87752.0,0.00117101]
[1765935242636,0.4208,87753.0,87752.0,0.00217101]
[1765935243230,0.4188,87753.0,87752.0,0.00117101]
[1765935243536,0.4178,87753.0,87752.0,0.00017101]
[1765935243728,0.4218,87753.0,87752.0,0.00117101]
[1765935244037,0.4198,87753.0,87752.0,0.00117101]
[1765935244236,0.4218,87753.0,87752.0,0.00117101]
[1765935245729,0.4198,87753.0,87752.0,0.00117101]
[1765935245926,0.4218,87753.0,87752.0,0.00117101]
[1765935246127,0.05701,87732.0,87731.0,0.07544]
[1765935246341,0.06846371,87732.0,87731.0,0.07544]
[1765935247036,0.05706291,87732.0,87731.0,0.07544]
[1765935248940,0.05706291,87732.0,87731.0,0.07644]
[1765935249138,0.05806291,87732.0,87731.0,0.07644]
[1765935250232,0.05906291,87732.0,87731.0,0.07644]
[1765935253736,0.00017101,87740.0,87739.0,0.05876]
[1765935253939,0.0113968,87763.0,87762.0,0.05876]
[1765935254137,0.0684087,87748.0,87747.0,0.05876]
[1765935254538,0.05701,87748.0,87747.0,0.05876]
[1765935254840,0.0684087,87748.0,87747.0,0.05876]
[1765935256330,0.0694087,87748.0,87747.0,0.05876]
[1765935256833,0.0714087,87748.0,87747.0,0.05876]
[1765935257245,0.0714087,87748.0,87739.0,0.00017091]
[1765935257246,0.0684098,87740.0,87739.0,0.00017091]
[1765935257537,0.4292098,87740.0,87739.0,0.00017091]
[1765935259039,0.4302098,87740.0,87739.0,0.00017091]
[1765935259641,0.4312098,87740.0,87739.0,0.00017091]
[1765935260143,0.4302098,87740.0,87739.0,0.00017091]
[1765935260346,0.4322098,87740.0,87739.0,0.00017091]
[1765935260839,0.45807882,87740.0,87739.0,0.00017091]
[1765935265350,0.068412,87723.0,87722.0,0.06076]
[1765935266851,0.068412,87723.0,87722.0,0.06176]
[1765935267242,0.069412,87723.0,87722.0,0.06376]
[1765935277163,0.05801,87723.0,87722.0,0.06376]
[1765935278676,0.05801,87723.0,87722.0,0.005]
[1765935285579,0.05901,87723.0,87722.0,0.004]
[1765935285975,0.05801,87723.0,87722.0,0.002]
[1765935286170,0.05801,87723.0,87722.0,0.003]
[1765935288083,0.05801,87723.0,87722.0,0.06022]
[1765935288285,0.001,87723.0,87722.0,0.0716221]
[1765935288783,0.001,87723.0,87722.0,0.4324221]
[1765935289177,0.00017091,87731.0,87730.0,0.0686211]
[1765935289672,0.00017091,87731.0,87730.0,0.05722]
[1765935289874,0.05652091,87731.0,87730.0,0.05722]
[1765935290383,0.05752091,87731.0,87730.0,0.05722]
[1765935291685,0.05952091,87731.0,87730.0,0.05722]
[1765935293787,0.07092181,87731.0,87730.0,0.05722]
[1765935295984,0.067752,87723.0,87722.0,0.05922]
[1765935296196,0.428552,87723.0,87722.0,0.002]
[1765935298390,0.428552,87723.0,87722.0,0.003]
[1765935298578,0.428552,87723.0,87722.0,0.03078]
[1765935299389,0.428552,87723.0,87722.0,0.06022]
[1765935299789,0.428552,87723.0,87722.0,0.003]
[1765935300282,0.428552,87723.0,87722.0,0.06022]
[1765935301080,0.428552,87723.0,87722.0,0.03078]
[1765935301390,0.428552,87723.0,87722.0,0.003]
[1765935301576,0.45452304,87723.0,87722.0,0.003]
[1765935303781,0.45452304,87723.0,87722.0,0.03078]
[1765935304291,0.45452304,87723.0,87722.0,0.003]
[1765935305091,0.45452304,87723.0,87722.0,0.06022]
[1765935308191,0.428552,87723.0,87722.0,0.06022]
[1765935308686,0.428552,87723.0,87722.0,0.003]
[1765935308880,0.45449731,87723.0,87722.0,0.003]
[1765935313695,0.45449731,87723.0,87722.0,0.06022]
[1765935314295,0.428552,87723.0,87722.0,0.06022]
[1765935315394,0.41715,87723.0,87722.0,0.06022]
[1765935315590,0.36097091,87731.0,87730.0,0.05722]
[1765935315784,0.00017091,87731.0,87730.0,0.05722]
[1765935315988,0.05552091,87731.0,87730.0,0.05722]
[1765935316190,0.06692181,87731.0,87730.0,0.05722]
[1765935316690,0.06792181,87731.0,87730.0,0.05722]
[1765935317594,0.05652091,87731.0,87730.0,0.05722]
[1765935318499,0.05752091,87731.0,87730.0,0.05722]
[1765935324202,0.08352985,87731.0,87730.0,0.05722]
[1765935333308,0.00217091,87731.0,87730.0,0.06727]
[1765935333510,0.05752091,87731.0,87730.0,0.06727]
[1765935333711,0.00217091,87731.0,87730.0,0.06727]
[1765935334115,0.03146091,87731.0,87730.0,0.06727]
[1765935334308,0.00217091,87731.0,87730.0,0.06727]
[1765935334514,0.3721983,87752.0,87751.0,0.05465]
[1765935334707,0.0699873,87760.0,87759.0,0.05465]
[1765935335209,0.02929,87760.0,87759.0,0.05465]
[1765935335407,0.02904763,87761.0,87760.0,0.0660472]
[1765935335710,0.3608,87764.0,87763.0,0.05465]
[1765935335905,0.41939,87764.0,87763.0,0.05465]
[1765935337006,0.05859,87764.0,87763.0,0.05465]
[1765935337204,0.0699867,87764.0,87763.0,0.05465]
[1765935337405,0.0699867,87764.0,87763.0,0.02726]
[1765935337605,0.0699867,87764.0,87763.0,0.05465]
[1765935338510,0.0699867,87764.0,87763.0,0.05565]
[1765935338711,0.0709867,87764.0,87763.0,0.05565]
[1765935339212,0.0699867,87764.0,87763.0,0.05465]
[1765935339415,0.0709867,87764.0,87763.0,0.05465]
[1765935348621,0.05843,87753.0,87752.0,0.41741]
[1765935349111,0.05843,87753.0,87752.0,0.05661]
[1765935349312,0.39,87758.0,87757.0,0.0680076]
[1765935349512,0.0292,87758.0,87757.0,0.0680076]
[1765935349812,0.05843,87758.0,87757.0,0.05661]
[1765935351711,0.05943,87758.0,87757.0,0.05661]
[1765935352115,0.0312,87758.0,87757.0,0.05661]
[1765935352321,0.0302,87758.0,87757.0,0.05661]
[1765935353313,0.05943,87758.0,87757.0,0.05661]
[1765935353513,0.0302,87758.0,87757.0,0.05661]
[1765935354216,0.0113974,87759.0,87758.0,0.0680074]
[1765935354520,0.0405969,87762.0,87761.0,0.068007]
[1765935354720,0.39,87767.0,87766.0,0.05661]
[1765935354920,0.4306263,87767.0,87766.0,0.05661]
[1765935355917,0.4306263,87767.0,87766.0,0.02715]
[1765935356116,0.4316263,87767.0,87766.0,0.02715]
[1765935356620,0.4316263,87767.0,87766.0,0.05661]
[1765935357724,0.4336263,87767.0,87766.0,0.05661]
[1765935358720,0.4326263,87767.0,87766.0,0.05661]
[1765935358920,0.4336263,87767.0,87766.0,0.05661]
[1765935361728,0.4326263,87767.0,87766.0,0.05661]
[1765935361919,0.4316263,87767.0,87766.0,0.05661]
[1765935362121,0.4326263,87767.0,87766.0,0.05661]
[1765935362320,0.45943077,87767.0,87766.0,0.05661]
[1765935363631,0.45843077,87767.0,87766.0,0.05661]
[1765935363821,0.45943077,87767.0,87766.0,0.05661]
[1765935364222,0.08725459,87767.0,87766.0,0.05661]
[1765935364931,0.08525459,87767.0,87766.0,0.05661]
[1765935365134,0.08625459,87767.0,87766.0,0.05661]
[1765935365633,0.08725459,87767.0,87766.0,0.05661]
[1765935366729,0.08725459,87767.0,87755.0,0.05714]
[1765935366730,0.0587,87756.0,87755.0,0.05714]
[1765935366927,0.08452459,87756.0,87755.0,0.0685378]
[1765935367228,0.05543459,87756.0,87755.0,0.0685378]